Workbook

Sheet PRADŽIA
B1: APIE ŠĮ ŠABLONĄ
B2: Stebėkite pradines investicijas į svetainę, jos naudą ir išlaidas naudodamiesi šia svetainės biudžeto sudarymo priemone.
B3: Lentelėse įveskite išsamią informaciją, kad būtų automatiškai apskaičiuotos bendros sumos ir vertinimo rodikliai.
B4: Pastaba:
B5: Papildomos instrukcijos pateiktos darbalapio BIUDŽETO ĮRANKIS A stulpelyje. Šis tekstas buvo specialiai paslėptas. Norėdami pašalinti tekstą, pasirinkite A stulpelį, tada pasirinkite Naikinti. Norėdami nebeslėpti teksto, pasirinkite A stulpelį, tada pakeiskite šrifto spalvą.
B6: Norėdami sužinoti daugiau apie darbalapio lenteles, lentelėje paspauskite SHIFT, tada – F10, pasirinkite parinktį LENTELĖ, tada pasirinkite ALTERNATYVUSIS TEKSTAS.

Sheet BIUDŽETO ĮRANKIS
B2: „Quadrex“ aparatinė įranga
B3: SVETAINĖS BIUDŽETO SUDARYMO PRIEMONĖ
B4: 2022-12-01
B6: Įmonės duomenys | C6: Koeficientas
B7: Būtinas grąžos koeficientas | C7: 10%
B8: Mokesčio tarifas | C8: 30%
B10: Pradinė investicija į svetainę | C10: Metai
B11: Aparatūra (pvz., serveriai) | C11: 25,000.00 EUR
B12: Programinė įranga (pvz., el. prekybos katalogo programinė įranga) | C12: 15,000.00 EUR
B13: Kūrimas (pvz., trečiosios šalies svetainės dizainas ir kūrimas) | C13: 150,000.00 EUR
B14: Bendra pradinių investicijų suma | C14: =SUBTOTAL(109,PradinėInvesticija[Metai]) -> 190,000.00 EUR
B16: Nauda iš svetainės | C16: 1 metai | D16: 2 metai | E16: 3 metai
B17: Tiesioginiai pardavimai | C17: 15,000.00 EUR | D17: 50,000.00 EUR | E17: 75,000.00 EUR
B18: Dėl pagerinto reklamos / pardavėjų efektyvumo didėjantys pardavimai | C18: 25,000.00 EUR | D18: 25,000.00 EUR | E18: 25,000.00 EUR
B19: Dėl padidėjusios partnerių dalyvavimo didėjantys pardavimai | C19: 25,000.00 EUR | D19: 25,000.00 EUR | E19: 25,000.00 EUR
B20: Sumažintos kelionės išlaidos | C20: 25,000.00 EUR | D20: 25,000.00 EUR | E20: 25,000.00 EUR
B21: Sumažintos klientų aptarnavimo išlaidos | C21: 50,000.00 EUR | D21: 50,000.00 EUR | E21: 50,000.00 EUR
B22: Bendra nauda | C22: =SUBTOTAL(109,Nauda[1 metai]) -> 140,000.00 EUR | D22: =SUBTOTAL(109,Nauda[2 metai]) -> 175,000.00 EUR | E22: =SUBTOTAL(109,Nauda[3 metai]) -> 200,000.00 EUR
B24: Išlaidos (išskyrus pradines kapitalo investicijas) | C24: 1 METAI | D24: 2 METAI | E24: 3 METAI
B25: Pardavimų išlaidos | C25: 7,500.00 EUR | D25: 25,000.00 EUR | E25: 37,500.00 EUR
B26: Priežiūra | C26: 15,000.00 EUR | D26: 15,000.00 EUR | E26: 15,000.00 EUR
B27: Projektų valdymas, klientų palaikymas | C27: 35,000.00 EUR | D27: 35,000.00 EUR | E27: 35,000.00 EUR
B28: Reklama internete, registracija paieškos sistemoje | C28: 10,000.00 EUR | D28: 10,000.00 EUR | E28: 10,000.00 EUR
B29: Nusidėvėjimas kapitalinėse išlaidose (skaičiuojant naudojamas trejų metų laikotarpis) | C29: =PradinėInvesticija[[#Totals],[Metai]]/3 -> 63,333.33 EUR | D29: =PradinėInvesticija[[#Totals],[Metai]]/3 -> 63,333.33 EUR | E29: =PradinėInvesticija[[#Totals],[Metai]]/3 -> 63,333.33 EUR
B30: Bendra išlaidų suma | C30: =SUBTOTAL(109,Išlaidos[1 METAI]) -> 130,833.33 EUR | D30: =SUBTOTAL(109,Išlaidos[2 METAI]) -> 148,333.33 EUR | E30: =SUBTOTAL(109,Išlaidos[3 METAI]) -> 160,833.33 EUR
B32: Viso | D32: 1 metai | E32: 2 metai | F32: 3 metai
B33: Grynoji nauda (sąnaudos) | D33: =Nauda[[#Totals],[1 metai]]-Išlaidos[[#Totals],[1 METAI]] -> 9,166.67 EUR | E33: =Nauda[[#Totals],[2 metai]]-Išlaidos[[#Totals],[2 METAI]] -> 26,666.67 EUR | F33: =Nauda[[#Totals],[3 metai]]-Išlaidos[[#Totals],[3 METAI]] -> 39,166.67 EUR
B34: Mokestis | D34: =D33*MokesčioTarifas -> 2,750.00 EUR | E34: =E33*MokesčioTarifas -> 8,000.00 EUR | F34: =F33*MokesčioTarifas -> 11,750.00 EUR
B35: Vertė po mokesčių | D35: =D33-D34 -> 6,416.67 EUR | E35: =E33-E34 -> 18,666.67 EUR | F35: =F33-F34 -> 27,416.67 EUR
B36: Įtrauktas nusidėvėjimas | D36: =C29 -> 63,333.33 EUR | E36: =D29 -> 63,333.33 EUR | F36: =E29 -> 63,333.33 EUR
B37: Pinigų srautas | C37: =-PradinėInvesticija[[#Totals],[Metai]] -> -190,000.00 EUR | D37: =D35+D36 -> 69,750.00 EUR | E37: 82,000.00 EUR | F37: 90,750.00 EUR
B38: Kaupiamasis pinigų srautas | C38: =C37 -> -190,000.00 EUR | D38: =C38+D37 -> -120,250.00 EUR | E38: -38,250.00 EUR | F38: 52,500.00 EUR
B40: Vertinimo metrika | C40: Reikšmės
B41: Dabartinė grynoji vertė (NPV) | C41: =C37+(NPV(ROR,D37:F37)) -> 9,359.50 EUR
B42: Vidinis grąžos koeficientas (IRR) | C42: =IRR(C37:F37) -> 12.66%
B43: Grąžinimo laikotarpis (metais) | C43: =IF(F38<=0,"Viršija 3 metus",IF(E38<=0,(F37-F38)/F37+2,IF(D38<=0,(E37-E38)/E37+1,IF(C38<=0,(D37-D38)/D37,"Netaikoma")))) -> 2.42
